bitfinex/quotes_ETHUSD_20220119
["timestamp","ask_amount","ask_price","bid_price","bid_amount"]
[1642591168966,7.8,3118.4,3118.3,4.15538531]
[1642591169162,8.00707852,3118.4,3118.3,4.15538531]
[1642591169562,6.9282,3118.4,3118.3,4.15538531]
[1642591169761,7.9282,3118.4,3118.3,4.15538531]
[1642591169961,8.73045,3118.4,3118.3,4.15538531]
[1642591170161,7.9282,3118.4,3118.3,4.15538531]
[1642591171364,8.73045,3118.4,3118.3,4.15538531]
[1642591173016,0.45729472,3118.9,3118.5,3.2]
[1642591173220,2.40659,3119.9,3118.3,4.15538531]
[1642591173221,1.60421,3120.3,3118.8,0.01290209]
[1642591173419,1.41942528,3120.7,3120.2,0.01297197]
[1642591173617,1.41942528,3120.7,3118.8,3.33395633]
[1642591173618,1.29122528,3120.7,3119.3,0.01276854]
[1642591173817,0.01080005,3120.3,3120.0,0.01208464]
[1642591174019,6.4103,3120.2,3120.0,1.31677772]
[1642591174220,0.03880678,3121.0,3120.0,1.31677772]
[1642591174221,0.32577536,3121.6,3120.2,5.3]
[1642591174418,3.8329,3121.8,3120.3,0.386]
[1642591174623,3.8329,3121.8,3120.6,0.80137]
[1642591174819,3.8329,3121.8,3120.7,0.386]
[1642591175017,0.03484285,3121.9,3120.7,0.386]
[1642591175018,0.03484285,3121.9,3121.7,1.76450318]
[1642591175217,0.128,3122.3,3121.7,1.76450318]
[1642591175420,0.00909478,3121.8,3121.6,1.60232]
[1642591175862,0.00852636,3121.7,3121.6,1.60232]
[1642591176263,0.00852636,3121.7,3121.5,0.80114]
[1642591176666,0.00795793,3121.6,3121.5,0.80114]
[1642591177270,0.00795793,3121.6,3121.4,0.80126]
[1642591177464,0.00795793,3121.6,3121.3,0.386]
[1642591177668,3.2,3121.8,3120.5,2.40393]
[1642591177669,1.45528544,3121.2,3120.5,2.40393]
[1642591178065,0.00511582,3121.1,3120.6,0.386]
[1642591178464,0.00454739,3121.0,3120.6,0.386]
[1642591178864,0.00397897,3120.9,3120.6,0.386]
[1642591179163,1.75528544,3121.2,3120.6,0.386]
[1642591179164,0.00341055,3120.8,3120.6,0.386]
[1642591179411,0.00341055,3120.8,3120.6,1.18747]
[1642591179612,0.00284212,3120.7,3120.6,1.18747]
[1642591180212,0.00284212,3120.7,3120.6,4.48747]
[1642591181613,0.00284212,3120.7,3120.6,3.686]
[1642591182013,0.00284212,3120.7,3120.6,0.386]
[1642591182424,0.13477254,3120.6,3120.1,0.386]
[1642591182816,0.12970527,3120.5,3119.8,0.80164]
[1642591183072,0.00170527,3120.5,3119.8,0.80164]
[1642591183264,0.00113685,3120.4,3119.9,0.00170527]
[1642591183466,1.52462761,3120.3,3119.9,0.00170527]
[1642591183665,1.82462761,3120.3,3119.9,0.00170527]
[1642591183866,1.52462761,3120.3,3119.9,0.00170527]
[1642591184075,0.09375329,3120.2,3119.9,0.00170527]
[1642591184268,0.09375329,3120.2,3119.7,0.00284211]
[1642591184469,1.82462761,3120.3,3119.7,0.00284211]
[1642591184666,1.52462761,3120.3,3119.7,0.00284211]
[1642591184867,0.1282,3121.1,3119.8,0.80162]
[1642591185073,0.1282,3121.1,3119.9,3.15608602]
[1642591185267,0.00397897,3120.9,3119.9,3.15608602]
[1642591185465,0.00397897,3120.9,3120.0,1.60389684]
[1642591185668,0.00341055,3120.8,3120.0,1.60389684]
[1642591185866,0.00341055,3120.8,3120.5,1.85233118]
[1642591186067,0.00284212,3120.7,3120.5,1.85233118]
[1642591186468,0.0022737,3120.6,3120.5,1.85233118]
[1642591187113,0.0022737,3120.6,3120.4,1.60276]
[1642591187513,0.00170527,3120.5,3120.4,1.60276]
[1642591187717,0.00170527,3120.5,3120.1,1.60288]
[1642591187915,0.00170527,3120.5,3120.0,0.00113684]
[1642591188114,0.00113685,3120.4,3120.0,0.00113684]
[1642591188414,0.128,3120.3,3120.0,0.00113684]
[1642591188614,1.16128764,3120.2,3119.8,0.00227369]
[1642591188816,0.9297,3120.7,3119.8,0.00227369]
[1642591189017,0.43084212,3120.7,3119.8,0.00227369]
[1642591189216,0.0022737,3120.6,3119.9,0.8016]
[1642591189616,0.00170527,3120.5,3120.0,0.00113684]
[1642591190016,1.51282014,3120.3,3120.0,0.00113684]
[1642591190418,1.51282014,3120.3,3119.8,0.00227369]
[1642591190684,0.09204758,3120.1,3119.8,0.00227369]
[1642591190884,0.1282,3120.2,3119.8,0.00227369]
[1642591191083,0.1282,3120.2,3119.4,1.70004494]
[1642591191485,0.1282,3120.2,3119.6,1.60316]
[1642591191684,0.1282,3120.2,3119.7,0.80165]
[1642591191883,0.00341055,3120.8,3119.7,0.80449211]
[1642591191884,0.3,3120.3,3119.7,0.80449211]
[1642591192090,0.00341055,3120.8,3120.0,0.80145]
[1642591192286,0.00284212,3120.7,3120.1,0.386]
[1642591192685,0.0022737,3120.6,3120.1,0.386]
[1642591193086,0.00170527,3120.5,3120.1,0.386]
[1642591193489,0.00113685,3120.4,3120.1,1.18734]
[1642591193887,0.00682109,3121.4,3120.1,1.18734]
[1642591194088,1.17480265,3121.0,3120.1,1.18734]
[1642591194313,0.08488507,3120.8,3120.1,1.18734]
[1642591194512,0.13197897,3120.9,3120.1,1.18734]
[1642591194715,0.00284212,3120.7,3120.1,1.18734]
[1642591194914,0.00341055,3120.8,3120.1,1.18734]
[1642591195214,0.00284212,3120.7,3120.1,1.18734]
[1642591195520,0.128,3120.9,3120.1,1.18734]
[1642591195521,1.10818733,3120.5,3120.1,1.18734]
[1642591196013,0.128,3120.9,3120.1,1.18734]
[1642591196014,0.00113685,3120.4,3120.1,1.18734]
[1642591196214,0.00113685,3120.4,3120.1,1.988756]
[1642591196513,0.128,3120.9,3120.1,1.988756]
[1642591196514,0.00341055,3120.8,3120.1,1.988756]
[1642591196714,3.2,3120.5,3120.1,1.988756]
[1642591197115,0.00113685,3120.4,3120.1,1.988756]
[1642591197415,0.00113685,3120.4,3120.1,1.18734]
[1642591198266,0.13211995,3120.3,3120.1,1.18734]
[1642591198471,0.00113685,3120.4,3120.1,1.18734]
[1642591199469,0.08396033,3120.3,3120.1,1.18734]
[1642591199873,0.00113685,3120.4,3120.1,1.18734]
[1642591200471,0.00113685,3120.4,3120.1,1.9887902]
[1642591200873,0.00113685,3120.4,3120.2,0.8014]
[1642591201675,0.00113685,3120.4,3120.1,2.4042102]
[1642591202116,0.00113685,3120.4,3120.1,0.80134]
[1642591202312,0.00113685,3120.4,3120.1,1.6027938]
[1642591202513,0.00113685,3120.4,3120.1,0.80134]
[1642591202714,0.00113685,3120.4,3120.1,1.60275]
[1642591202917,0.00113685,3120.4,3120.1,0.80134]
[1642591203115,1.4558229,3120.3,3120.1,0.80134]
[1642591203717,1.64513932,3120.2,3120.1,0.80134]
[1642591203923,1.64513932,3120.2,3119.8,0.00227369]
[1642591203924,1.8145337,3120.2,3119.8,0.00227369]
[1642591204116,0.10255449,3120.0,3119.8,0.00227369]
[1642591204316,6.69193932,3120.2,3119.3,1.60344]
[1642591204317,6.9282,3119.9,3119.3,1.60344]
[1642591204519,7.2282,3119.9,3119.7,0.00284211]
[1642591204717,7.2282,3119.9,3119.4,0.00454738]
[1642591204718,1.43127196,3119.5,3119.4,0.00454738]
[1642591205563,1.73127196,3119.5,3119.4,0.00454738]
[1642591206970,1.85947196,3119.5,3119.4,0.00454738]
[1642591207171,5.05947196,3119.5,3119.4,0.088]
[1642591207472,5.05947196,3119.5,3119.4,0.09254738]
[1642591207473,4.93127196,3119.5,3119.4,0.09254738]
[1642591207672,3.5,3119.5,3119.4,0.09254738]
[1642591209322,3.2,3119.5,3119.4,0.09254738]
[1642591209524,0.00113685,3120.4,3119.6,1.60304]
[1642591209722,0.00113685,3120.4,3119.7,0.01245003]
[1642591209924,0.00113685,3120.4,3119.7,0.01529214]
[1642591210123,0.00113685,3120.4,3119.8,0.00227369]
[1642591210523,1.30043121,3120.4,3119.8,0.00227369]
[1642591210725,1.30043121,3120.4,3119.9,0.80144]
[1642591211028,1.30043121,3120.4,3120.0,0.8014794]
[1642591211227,1.30043121,3120.4,3120.0,0.00113684]
[1642591211622,0.128,3120.3,3120.0,0.00113684]
[1642591212826,1.60043121,3120.4,3120.0,0.00113684]
[1642591213069,0.22466298,3120.3,3120.0,0.00113684]
[1642591213259,0.128,3120.3,3120.0,0.00113684]
[1642591213561,0.128,3120.3,3119.8,0.00227369]
[1642591213758,0.09416932,3120.2,3119.8,0.00227369]
[1642591213963,0.1282,3120.1,3119.8,0.00227369]
[1642591214160,1.0,3120.3,3119.8,0.00227369]
[1642591214161,0.08349554,3120.0,3119.8,0.00227369]
[1642591214364,1.36938782,3119.9,3119.8,0.00227369]
[1642591214562,1.66938782,3119.9,3119.8,0.00227369]
[1642591214962,1.66938782,3119.9,3119.7,0.79597162]
[1642591217316,0.1282,3119.8,3119.7,0.79597162]
[1642591217714,4.86938782,3119.9,3119.7,0.79597162]
[1642591218314,1.66938782,3119.9,3119.7,0.79597162]
[1642591223973,1.66938782,3119.9,3118.5,3.6342764]
[1642591223974,13.56290663,3119.8,3118.5,3.6342764]
[1642591224171,1.0,3119.7,3118.5,0.3]
[1642591224417,0.27418446,3119.6,3118.6,0.80880108]
[1642591224614,0.1282,3119.6,3118.6,0.80880108]
[1642591224813,0.1282,3119.6,3118.7,0.00625266]
[1642591224814,3.9948,3119.6,3118.7,0.00625266]
[1642591225014,2.37705508,3119.5,3118.7,0.00625266]
[1642591225215,0.1282,3119.4,3118.7,0.00625266]
[1642591225413,0.1282,3119.4,3118.7,0.80827266]
[1642591225617,0.93018,3119.4,3118.7,0.80827266]
[1642591225813,0.93018,3119.4,3118.8,0.00568423]
[1642591226217,0.93018,3119.4,3118.5,0.3]
[1642591226218,6.8,3119.3,3118.5,0.3]
[1642591226418,0.1282,3119.2,3118.5,0.3]
[1642591226623,0.80221,3119.0,3118.6,0.00113685]
[1642591226818,0.5902,3118.9,3118.6,0.00113685]
[1642591227019,1.28364198,3118.8,3118.6,0.00113685]
[1642591227218,1.20096729,3118.8,3118.6,0.00113685]
[1642591227418,1.50096729,3118.8,3118.6,0.00113685]
[1642591229074,6.20736459,3118.8,3118.6,0.00113685]
[1642591229277,2.73131729,3118.8,3118.6,0.00113685]
[1642591229474,7.8,3118.7,3118.6,0.00113685]
[1642591230675,7.9282,3118.7,3118.6,0.00113685]
[1642591231275,6.9282,3118.7,3118.6,0.00113685]
[1642591231476,7.9282,3118.7,3118.6,0.00113685]
[1642591231920,7.8,3118.7,3118.6,0.00113685]
[1642591232320,1.0,3118.7,3118.6,0.00113685]
[1642591232517,3.5,3118.7,3118.6,0.00113685]
[1642591233318,1.50096729,3118.8,3118.6,0.00113685]
[1642591237066,2.60311729,3118.8,3118.6,0.00113685]
[1642591237270,6.9282,3118.7,3118.6,0.00113685]
[1642591237465,7.9282,3118.7,3118.6,0.00113685]
[1642591237867,0.1282,3118.7,3118.6,0.00113685]
[1642591238067,0.3,3118.8,3118.6,0.00113685]
[1642591238268,0.00170527,3119.1,3118.6,0.00113685]
[1642591238669,0.12933684,3119.0,3118.6,0.00113685]
[1642591239073,1.1021,3118.9,3118.6,0.00113685]
[1642591239316,0.1282,3118.8,3118.6,0.00113685]
[1642591239517,1.46523969,3118.8,3118.6,0.00113685]
[1642591239924,1.63703969,3118.8,3118.6,0.00113685]
[1642591243160,1.63703969,3118.8,3118.4,0.0022737]
[1642591243662,0.80216,3118.7,3118.4,0.0022737]
[1642591243860,0.12071682,3118.6,3118.4,0.0022737]
[1642591244465,0.42071682,3118.6,3118.4,0.0022737]
[1642591244665,0.80216,3118.7,3118.4,0.0022737]
[1642591244865,0.3,3118.6,3118.4,0.0022737]
[1642591245070,1.0,3118.7,3118.4,0.0022737]
[1642591245365,3.09953002,3118.8,3118.4,0.0022737]
[1642591245768,0.08855905,3118.7,3118.4,0.0022737]
[1642591245970,3.09953002,3118.8,3118.4,0.0022737]
[1642591246808,0.8022,3118.6,3118.4,0.0022737]
[1642591247014,1.1022,3118.6,3118.4,0.0022737]
[1642591249519,0.3,3118.6,3118.4,0.0022737]
[1642591249719,1.76523969,3118.8,3118.4,0.0022737]
[1642591249918,1.63703969,3118.8,3118.4,0.0022737]
[1642591250661,2.33102749,3118.7,3118.4,0.0022737]
[1642591250863,0.1282,3118.6,3118.4,0.0022737]
[1642591251064,2.06523969,3118.8,3118.4,0.0022737]
[1642591251464,3.06523969,3118.8,3118.4,0.0022737]
[1642591253368,0.80216,3118.7,3118.4,0.0022737]
[1642591253569,1.80216,3118.7,3118.4,0.0022737]
[1642591253768,0.10790277,3118.6,3118.4,0.0022737]
[1642591253971,1.80216,3118.7,3118.4,0.0022737]
[1642591256721,0.10842745,3118.6,3118.4,0.0022737]
[1642591257023,6.7,3118.4,3117.5,1.6043781]
[1642591257227,6.7,3118.4,3117.0,0.1282]
[1642591257228,3.14930938,3118.3,3117.0,0.1282]
[1642591257523,1.59253562,3118.1,3117.7,0.00397896]
[1642591257825,0.10104177,3117.9,3117.7,0.00397896]
[1642591258071,7.2282,3117.8,3117.7,0.00397896]
[1642591258266,7.2282,3117.8,3116.8,0.00909477]
[1642591258461,3.9148,3117.7,3116.8,0.00909477]
[1642591258761,4.9148,3117.7,3117.0,1.6046301]
[1642591258965,1.27629133,3117.2,3117.0,1.6046301]
[1642591259169,7.8853,3117.7,3117.1,0.0073895]
[1642591259369,0.6,3117.8,3117.1,0.0073895]
[1642591259568,3.8202,3118.2,3117.1,0.0073895]
[1642591259768,1.1372,3118.4,3117.2,0.81447485]
[1642591260169,1.29239874,3117.9,3117.3,1.49752296]
[1642591260368,1.29239874,3117.9,3117.5,1.60434]
[1642591260568,1.29239874,3117.9,3117.4,1.61000423]
[1642591260878,1.29239874,3117.9,3117.6,0.00454739]
[1642591261068,1.59239874,3117.9,3117.5,0.00511581]
[1642591261267,0.09252991,3117.8,3117.5,0.00511581]
[1642591261468,1.59239874,3117.9,3117.5,0.00511581]
[1642591261918,1.59239874,3117.9,3117.1,1.6119595]
[1642591262118,0.3,3117.9,3117.2,0.8023593]
[1642591262522,12.515,3118.2,3117.3,0.00625266]
[1642591262523,13.115,3118.2,3117.3,0.00625266]
[1642591262923,0.80232,3118.1,3117.3,0.00625266]
[1642591263120,0.80232,3118.1,3117.3,0.80229]
[1642591263324,1.25619684,3118.1,3117.4,1.51636948]
[1642591263526,1.25619684,3118.1,3117.4,0.00568423]
[1642591263721,1.25619684,3118.1,3117.5,0.00511581]
[1642591263921,1.38439684,3118.1,3117.4,0.00568423]
[1642591264123,0.10211353,3118.0,3117.4,0.00568423]
[1642591264523,3.78672684,3118.1,3117.4,0.00568423]
[1642591264728,1.37699972,3117.6,3117.4,0.00568423]
[1642591264927,6.9283,3117.5,3117.4,0.00568423]
[1642591265124,6.9283,3117.5,3117.1,0.0073895]
[1642591265326,5.10348456,3117.4,3116.6,0.01023162]
[1642591265573,1.11766183,3116.8,3116.6,0.01023162]
[1642591266165,0.3,3116.8,3116.6,0.01023162]
[1642591266562,2.18072,3117.3,3116.6,0.01023162]
[1642591266762,2.18072,3117.3,3116.6,0.81273162]
[1642591266969,2.48072,3117.3,3116.6,0.81273162]
[1642591267166,2.48072,3117.3,3116.7,0.0096632]
[1642591267367,1.13011453,3117.0,3116.7,0.0096632]
[1642591267569,1.43011453,3117.0,3116.7,0.0096632]
[1642591267768,0.1283,3117.1,3116.7,0.0096632]
[1642591268367,0.4283,3117.1,3116.3,0.01193689]
[1642591268873,0.1283,3117.1,3116.3,0.01193689]
[1642591269069,0.1283,3117.1,3116.4,0.8025477]
[1642591269316,1.45086144,3116.9,3116.3,0.01193689]
[1642591269516,1.45086144,3116.9,3116.5,0.01080004]
[1642591269717,1.45086144,3116.9,3116.3,0.01193689]
[1642591269924,1.45086144,3116.9,3115.6,0.1283]
[1642591269925,0.15327933,3116.6,3115.6,0.1283]
[1642591270231,0.15327933,3116.6,3115.7,0.00341054]
[1642591270232,0.9144572,3116.4,3115.7,0.00341054]
[1642591270420,4.0445,3116.3,3115.7,0.00341054]
[1642591270623,2.46972195,3116.2,3115.7,0.00341054]
[1642591270819,2.38949826,3116.1,3115.7,0.00341054]
[1642591271022,1.30772195,3116.0,3115.7,0.00341054]
[1642591271222,1.13602195,3115.9,3115.7,0.00341054]
[1642591271430,8.06065195,3115.8,3115.7,0.00341054]
[1642591271621,9.36065195,3115.8,3115.7,0.00341054]
[1642591271821,9.66065195,3115.8,3115.7,0.00341054]
[1642591272323,8.85772195,3115.8,3115.7,0.00341054]
[1642591273381,0.8382269,3116.7,3115.8,3.35]
[1642591273580,0.97431136,3116.7,3116.5,0.01223839]
[1642591273778,0.00170527,3116.6,3116.5,0.01223839]
[1642591273980,0.97601663,3116.6,3116.5,0.01223839]
[1642591274276,0.00170527,3116.6,3116.5,0.01223839]
[1642591274477,0.00170527,3116.6,3116.4,2.4073647]
[1642591274678,0.00170527,3116.6,3115.9,0.00227369]
[1642591274882,0.12943685,3116.5,3115.9,0.00227369]
[1642591275079,0.11302505,3116.4,3115.6,0.00397896]
[1642591275284,0.1283,3116.3,3115.6,0.00397896]
[1642591275486,0.1283,3116.3,3114.6,4.88012843]
[1642591275487,0.01237566,3115.9,3114.9,1.60565]
[1642591275686,0.01237566,3115.9,3114.3,1.61977984]
[1642591275687,0.1283,3115.8,3114.3,1.13201321]
[1642591275882,0.1283,3115.8,3115.0,0.00341055]
[1642591275883,0.12943684,3115.8,3115.0,0.00341055]
[1642591276080,0.08130748,3115.7,3115.0,0.00341055]
[1642591276281,0.1283,3115.6,3115.0,0.00341055]
[1642591276489,0.1283,3115.7,3115.0,0.00341055]
[1642591276916,1.30876608,3115.6,3114.6,0.00568424]
[1642591277118,1.44833077,3114.9,3114.6,0.80864424]
[1642591277318,5.83453684,3115.8,3114.6,0.80864424]
[1642591277319,4.89774269,3115.8,3114.6,0.80864424]
[1642591277520,1.29243684,3115.8,3114.8,1.60573]
[1642591277720,1.16413684,3115.8,3114.8,1.60573]
[1642591277920,1.16413684,3115.8,3114.9,0.00397897]
[1642591278317,1.08788963,3115.4,3114.9,0.80684897]
[1642591278520,1.12043775,3115.4,3114.9,0.80684897]
[1642591278720,1.12043775,3115.4,3114.9,0.00397897]
[1642591279318,1.12043775,3115.4,3114.6,0.00568424]
[1642591279520,1.12043775,3115.4,3114.6,3.1617437]
[1642591279720,1.21659826,3114.9,3114.6,3.1617437]
[1642591279918,1.21659826,3114.9,3114.7,0.00511582]
[1642591280318,1.21659826,3114.9,3114.6,0.80860964]
[1642591280562,0.03254812,3115.4,3114.8,0.80294]
[1642591280763,0.1283,3115.6,3114.8,0.80294]
[1642591280963,0.1283,3115.6,3114.9,0.00397897]
[1642591281166,2.16413684,3115.8,3114.9,0.00397897]
[1642591281167,0.4283,3115.7,3114.9,0.00397897]
[1642591281366,0.1283,3115.7,3114.9,0.00397897]
[1642591281572,1.41711586,3115.0,3114.9,0.00397897]
[1642591281779,5.81939438,3114.9,3114.3,0.01410984]
[1642591281976,10.58959438,3114.9,3114.6,0.00170527]
[1642591282170,4.8154,3114.8,3114.6,0.00170527]
[1642591282370,3.7283,3114.7,3114.6,0.00170527]
[1642591282969,7.2283,3114.7,3114.6,0.00170527]
[1642591283174,8.2283,3114.7,3114.6,0.00170527]
[1642591283372,6.8,3114.6,3114.3,0.01410984]
[1642591283673,6.8,3114.6,3114.4,0.00113685]
[1642591283674,0.1283,3114.5,3114.4,0.00113685]
[1642591283871,6.9283,3114.6,3114.4,0.00113685]
[1642591284070,9.10849945,3114.5,3114.4,0.00113685]
[1642591284325,2.43679945,3114.5,3114.4,0.00113685]
[1642591284514,1.43679945,3114.5,3114.4,0.00113685]
[1642591284718,2.43679945,3114.5,3114.4,0.00113685]
[1642591284917,7.98679945,3114.5,3114.4,0.00113685]
[1642591286319,19.99886315,3114.4,3114.3,0.01410984]
[1642591286520,21.12716315,3114.4,3114.3,0.01410984]
[1642591287921,21.13921104,3114.4,3112.6,1.60659]
[1642591288164,6.69069319,3114.3,3112.4,0.212]
[1642591288463,0.80339,3114.1,3112.7,0.0096632]
[1642591288663,0.21062497,3114.0,3112.9,1.60667]
[1642591288863,2.4929,3114.3,3112.9,1.60667]
[1642591288864,1.44967853,3113.5,3112.9,2.92947]
[1642591289063,0.01252671,3114.1,3113.0,0.00795792]
[1642591289263,0.1283,3114.0,3113.0,0.00795792]
[1642591289663,0.80344,3113.9,3113.0,0.00795792]
[1642591289865,0.1283,3113.8,3113.0,0.00795792]
[1642591290065,1.21616794,3113.5,3113.0,0.00795792]
[1642591291944,0.166417,3113.6,3113.0,0.00795792]
[1642591292150,20.46086315,3114.4,3113.0,0.01254463]
[1642591292151,1.1283,3114.3,3113.0,0.01254463]
[1642591292341,1.4283,3114.3,3113.3,0.8031657]
[1642591292745,1.4283,3114.3,3113.4,0.00568423]
[1642591293043,1.4283,3114.3,3113.2,1.60636]
[1642591293044,1.28120646,3113.7,3113.3,0.00625265]
[1642591293241,1.28120646,3113.7,3113.2,1.56261265]
[1642591293645,0.00170527,3113.6,3113.2,1.56261265]
[1642591294041,0.00113684,3113.5,3113.2,1.56261265]
[1642591294445,0.00170527,3113.6,3113.5,0.00299983]
[1642591295770,0.00170527,3113.6,3113.5,1.25606471]
[1642591295971,0.00170527,3113.6,3113.5,3.32834041]
[1642591296369,0.00170527,3113.6,3113.5,1.25606471]
[1642591297073,0.00170527,3113.6,3113.5,0.00299983]
[1642591297878,6.83000527,3113.6,3113.5,0.00299983]
[1642591298075,8.13000527,3113.6,3113.5,0.00299983]
[1642591298278,9.55825772,3113.6,3113.5,0.00299983]
[1642591298677,2.85825772,3113.6,3113.5,0.00299983]
[1642591299360,1.60170527,3113.6,3113.5,0.00299983]
[1642591299557,0.60170527,3113.6,3113.5,0.00299983]
[1642591299758,4.15170527,3113.6,3113.5,0.00299983]
[1642591300257,3.85170527,3113.6,3113.5,0.00299983]
[1642591300458,0.30170527,3113.6,3113.5,1.16732123]
[1642591300657,0.00170527,3113.6,3113.5,1.16732123]
[1642591301257,0.00170527,3113.6,3113.5,3.14048579]
[1642591302059,0.00170527,3113.6,3113.5,1.16732123]
[1642591304274,0.00170527,3113.6,3113.5,3.1111487]
[1642591304476,0.00170527,3113.6,3113.5,3.9142587]
[1642591305276,0.00170527,3113.6,3113.5,3.92667573]
[1642591306377,0.00170527,3113.6,3113.5,22.97667573]
[1642591306578,0.00170527,3113.6,3113.5,24.59861573]
[1642591306823,19.99886315,3114.4,3113.9,0.80296]
[1642591307023,19.99886315,3114.4,3114.0,0.80298]
[1642591307224,0.00397896,3114.3,3114.0,0.80298]
[1642591307626,19.99886315,3114.4,3114.1,5.04958276]
[1642591307627,0.00341054,3114.2,3114.1,5.04958276]
[1642591308124,0.00341054,3114.2,3114.1,24.09958276]
[1642591308325,0.00341054,3114.2,3114.1,5.04958276]
[1642591308524,0.00341054,3114.2,3114.1,1.24958276]
[1642591313474,0.00341054,3114.2,3114.1,20.29958276]
[1642591314324,9.34541206,3114.4,3114.2,6.8]
[1642591314524,9.34541206,3114.4,3114.3,7.262]
[1642591314724,9.34541206,3114.4,3114.3,8.72194]
[1642591314923,9.3465489,3114.4,3114.3,27.77194]
[1642591315127,9.3465489,3114.4,3114.3,0.462]
[1642591315525,9.2965489,3114.4,3114.3,5.962]
[1642591315926,9.2965489,3114.4,3114.3,0.462]
[1642591316125,9.5965489,3114.4,3114.3,0.462]
[1642591320492,9.8965489,3114.4,3114.2,1.6055527]
[1642591320685,0.1283,3114.3,3114.0,1.60557]
[1642591320884,0.1283,3114.3,3113.7,5.6212459]
[1642591320885,1.60010963,3114.2,3113.7,1.60616]
[1642591321083,0.1283,3114.1,3113.7,1.60616]
[1642591321285,0.10339231,3114.0,3113.8,0.0022737]
[1642591321482,0.1283,3113.9,3113.8,0.0022737]
[1642591321683,0.1283,3114.1,3113.8,0.0022737]
[1642591321925,0.1283,3114.1,3113.8,0.8054037]
[1642591322327,0.1283,3114.1,3113.9,0.00170527]
[1642591322529,0.1283,3114.3,3113.9,0.00170527]
[1642591322731,9.2965489,3114.4,3113.9,0.80473527]
[1642591322928,9.2965489,3114.4,3114.2,1.31777071]
[1642591323133,9.2965489,3114.4,3114.3,19.05]
[1642591323329,9.2965489,3114.4,3114.2,3.72622151]
[1642591323528,0.1283,3115.4,3114.2,3.72622151]
[1642591323735,0.1284,3116.0,3115.1,0.0125812]
[1642591324033,0.00511581,3115.3,3115.2,7.362]
[1642591324228,6.9554,3116.6,3115.5,0.802483]
[1642591324429,6.9554,3116.6,3115.5,1.264483]
[1642591324727,6.9554,3116.6,3115.5,0.462]
[1642591324728,0.00454739,3116.1,3115.5,0.462]
[1642591325129,0.00397897,3116.0,3115.8,1.60503]
[1642591325428,0.00397897,3116.0,3115.8,0.80251]
[1642591325685,0.00341055,3115.9,3115.7,2.4075684]
[1642591326082,0.00284212,3115.8,3115.7,7.1601184]
[1642591327082,0.00284212,3115.8,3115.7,5.5551084]
[1642591328485,0.00284212,3115.8,3115.7,6.5551084]
[1642591328885,0.00284212,3115.8,3115.7,1.6051084]
[1642591329088,0.00284212,3115.8,3115.5,1.2645]
[1642591329324,0.00284212,3115.8,3115.7,3.2]
[1642591329529,0.1283,3116.3,3115.7,3.2]
[1642591329727,7.4271,3116.6,3115.7,3.2]
[1642591329728,0.1283,3116.5,3115.7,3.2]
[1642591329929,0.00511582,3116.2,3115.7,3.2]
[1642591330232,0.13284739,3116.1,3115.7,3.2]
[1642591330428,0.00454739,3116.1,3115.8,0.80257]
[1642591330628,0.00397897,3116.0,3115.8,1.6051003]
[1642591331130,0.1283,3116.3,3115.8,1.6051003]
[1642591331131,0.00341055,3115.9,3115.8,1.6051003]
[1642591331631,0.00341055,3115.9,3115.8,6.3671003]
[1642591332029,0.00341055,3115.9,3115.8,7.1696203]
[1642591333873,0.00341055,3115.9,3115.8,6.3670503]
[1642591334674,0.00341055,3115.9,3115.8,1.2645303]
[1642591335175,0.00341055,3115.9,3115.8,4.55488963]
[1642591335573,0.00341055,3115.9,3115.8,1.2645303]
[1642591336176,0.00341055,3115.9,3115.8,2.8694403]
[1642591337821,0.00341055,3115.9,3115.8,6.07578057]
[1642591338630,0.00341055,3115.9,3115.8,2.8694403]
[1642591339227,0.00341055,3115.9,3115.8,6.05111402]
[1642591339627,0.00341055,3115.9,3115.8,2.8694403]
[1642591339826,0.00341055,3115.9,3115.8,6.03195498]
[1642591340426,0.00341055,3115.9,3115.8,26.08195498]
[1642591340871,0.00341055,3115.9,3115.8,22.9194403]
[1642591342083,6.8271,3116.6,3115.9,6.8]
[1642591342281,6.8271,3116.6,3116.0,5.50133425]
[1642591342478,0.00341054,3116.5,3116.1,1.7644]
[1642591342678,0.00341054,3116.5,3116.2,19.512]
[1642591342883,0.00284211,3116.4,3116.2,0.462]
[1642591343279,6.8271,3116.6,3116.2,0.462]
[1642591343280,0.00227369,3116.3,3116.2,0.462]
[1642591343479,0.00227369,3116.3,3116.2,2.0666215]
[1642591343885,0.00227369,3116.3,3116.2,0.462]
[1642591344183,0.14781993,3116.2,3115.8,1.0]
[1642591344423,0.1283,3116.1,3115.8,1.0]
[1642591344623,0.00113684,3116.1,3115.8,1.0]
[1642591344923,0.1283,3116.0,3115.8,1.0]
[1642591345124,0.1283,3116.1,3115.8,1.0]
[1642591345326,0.12943684,3116.1,3115.8,1.0]
[1642591345526,0.12943684,3116.1,3115.2,0.1]
[1642591345728,0.12943684,3116.1,3114.7,1.6054943]
[1642591346028,0.2482729,3116.0,3115.3,0.00341055]
[1642591346226,0.2482729,3116.0,3114.8,0.00625266]
[1642591346227,0.1283,3115.9,3114.8,0.00625266]
[1642591346429,0.1283,3115.9,3114.7,1.60549]
[1642591346430,0.20717852,3115.9,3114.7,1.60549]
[1642591346627,1.38551196,3115.2,3114.7,3.2110093]
[1642591346826,1.38551196,3115.2,3114.8,0.00625266]
[1642591347035,0.1283,3115.1,3114.8,0.00625266]
[1642591347229,0.21958628,3115.1,3114.8,0.00625266]
[1642591347428,0.21958628,3115.1,3114.1,0.01023163]
[1642591347628,0.21958628,3115.1,3114.4,1.0]
[1642591347827,0.1283,3115.1,3114.4,0.95]
[1642591348088,0.1283,3115.1,3114.5,0.00795793]
[1642591348089,0.08521111,3115.0,3114.5,0.00795793]
[1642591348276,0.1283,3114.9,3114.5,0.00795793]
[1642591348476,1.79947066,3114.6,3114.5,0.00795793]
[1642591348676,1.92777066,3114.6,3114.5,0.00795793]
[1642591348877,2.22777066,3114.6,3114.1,0.01023163]
[1642591349081,0.1283,3114.5,3114.1,0.01023163]
[1642591350279,9.57697066,3114.6,3114.1,0.01023163]
[1642591350883,1.0,3114.5,3114.1,0.01023163]
[1642591351084,0.1283,3114.4,3114.1,0.01023163]
[1642591351283,0.1283,3114.4,3113.7,0.01250532]
[1642591351284,0.11877385,3114.3,3113.7,0.01250532]
[1642591351481,0.1283,3114.2,3113.6,0.01307374]
[1642591351686,0.10288332,3114.1,3113.6,0.01307374]
[1642591351928,1.66594625,3114.0,3113.6,0.01307374]